[Event "22nd Ruzomberok Open 2019"]
[Site "Ruzomberok"]
[Date "2019.07.03"]
[Round "5.1"]
[White "Zvarik, Martin"]
[Black "Jakab, Bela"]
[Result "1/2-1/2"]
[ECO "D78"]
[WhiteElo "2308"]
[BlackElo "2278"]
[Annotator "NA"]
[PlyCount "91"]
[EventDate "2019.06.29"]
[EventType "swiss"]
[EventCountry "SVK"]
[SourceTitle "playchess.com"]
[Source "ChessBase"]
[SourceQuality "1"]
[TimeControl "40/5400+30:1800+30"]

1. Nf3 {[%emt 0:00:00]} d5 {[%emt 0:00:00]} 2. g3 {[%emt 0:00:07]} Nf6 {[%emt 0:00:00]} 3. Bg2 {[%emt 0:00:21]} g6 {[%emt 0:00:16]} 4. O-O {[%emt 0:02:26]} Bg7 {[%emt 0:00:06]} 5. d4 {[%emt 0:01:11]} O-O {[%emt 0:00:15]} 6. c4 {[%emt 0:00:10]} c6 {[%emt 0:00:25]} 7. b3 {[%emt 0:04:47]} Bf5 {[%emt 0:03:17]} 8. Nc3 {[%emt 0:03:06]} Ne4 {[%emt 0:01:19]} 9. Bb2 {[%emt 0:01:02]} Nxc3 {[%emt 0:01:34]} 10. Bxc3 {[%emt 0:00:54]} Be4 {[%emt 0:00:06]} 11. Rc1 {[%emt 0:04:26]} Re8 {[%emt 0:02:43]} 12. Qd2 {[%emt 0:02:53]} Nd7 {[%emt 0:03:48]} 13. Rfd1 {[%emt 0:05:54]} Nf6 {[%emt 0:06:21]} 14. Qb2 {[%emt 0:04:57]} Bh6 {[%emt 0:10:42]} 15. Bd2 {[%emt 0:02:18]} Bxd2 {[%emt 0:00:56]} 16. Rxd2 {[%emt 0:02:59]} a5 {[%emt 0:02:21]} 17. Ne5 {[%emt 0:02:45]} Bxg2 {[%emt 0:04:50]} 18. Kxg2 {[%emt 0:05:35]} a4 {[%emt 0:00:20]} 19. bxa4 {[%emt 0:06:59]} Ne4 {[%emt 0:01:32]} 20. Rdc2 {[%emt 0:04:40]} f6 {[%emt 0:01:52]} 21. Nd3 {[%emt 0:14:29]} dxc4 {[%emt 0:28:00]} 22. Rxc4 {[%emt 0:01:55]} Nd6 {[%emt 0:02:48]} 23. Rb4 {[%emt 0:01:00]} Kh8 {[%emt 0:05:37]} 24. Qb3 {[%emt 0:15:10]} Ra5 {[%emt 0:01:45]} 25. Rc5 {[%emt 0:01:51]} Qa8 {[%emt 0:00:54]} 26. Rxa5 {[%emt 0:02:27]} Qxa5 {[%emt 0:00:06]} 27. Nc5 {[%emt 0:00:10]} b5 {[%emt 0:00:39]} 28. axb5 {[%emt 0:01:49]} cxb5 {[%emt 0:00:05]} 29. a4 {[%emt 0:00:29]} Qa8+ {[%emt 0:03:58]} 30. Qf3 {[%emt 0:01:23]} Qxf3+ {[%emt 0:00:58]} 31. Kxf3 {[%emt 0:00:23]} bxa4 {[%emt 0:00:05]} 32. Rxa4 {[%emt 0:00:13]} Kg7 {[%emt 0:00:23]} 33. e4 {[%emt 0:01:08]} Kf7 {[%emt 0:02:00]} 34. e5 {[%emt 0:03:35]} fxe5 {[%emt 0:00:43]} 35. dxe5 {[%emt 0:00:12]} Nf5 {[%emt 0:00:12]} 36. g4 {[%emt 0:01:13]} Ng7 {[%emt 0:00:10]} 37. Ke3 {[%emt 0:02:47]} Ne6 {[%emt 0:00:23]} 38. Nxe6 {[%emt 0:00:27]} Kxe6 {[%emt 0:00:05]} 39. f4 {[%emt 0:00:13]} Rb8 {[%emt 0:00:23]} 40. Ra6+ {[%emt 0:00:42]} Kd5 {[%emt 0:00:53]} 41. Ra3 {[%emt 0:30:53]} Rb2 {[%emt 0:32:09]} 42. Rd3+ {[%emt 0:00:00]} Ke6 {[%emt 0:00:00]} 43. Rd2 {[%emt 0:00:00]} Rb1 {[%emt 0:00:00]} 44. Kf2 {[%emt 0:00:00]} Rb3 {[%emt 0:00:00]} 45. Rd8 {[%emt 0:00:00]} Kf7 {[%emt 0:00:00]} 46. Kg2 {[%emt 0:00:00]} 1/2-1/2

[Event "22nd Ruzomberok Open 2019"]
[Site "Ruzomberok"]
[Date "2019.07.03"]
[Round "5.2"]
[White "Karas, Marek"]
[Black "Jablonicky, Martin"]
[Result "1/2-1/2"]
[ECO "C07"]
[WhiteElo "2268"]
[BlackElo "2378"]
[Annotator "NA"]
[PlyCount "49"]
[EventDate "2019.06.29"]
[EventType "swiss"]
[EventCountry "SVK"]
[SourceTitle "playchess.com"]
[Source "ChessBase"]
[SourceQuality "1"]
[TimeControl "40/5400+30:1800+30"]

1. e4 {[%emt 0:00:00]} e6 {[%emt 0:02:04]} 2. d4 {[%emt 0:00:00]} d5 {[%emt 0:00:03]} 3. Nd2 {[%emt 0:00:00]} c5 {[%emt 0:00:06]} 4. exd5 {[%emt 0:00:00]} Qxd5 {[%emt 0:00:05]} 5. Ngf3 {[%emt 0:00:07]} cxd4 {[%emt 0:00:05]} 6. Bc4 {[%emt 0:00:05]} Qd6 {[%emt 0:00:04]} 7. O-O {[%emt 0:00:08]} Nf6 {[%emt 0:00:04]} 8. Nb3 {[%emt 0:00:06]} Nc6 {[%emt 0:00:04]} 9. Nbxd4 {[%emt 0:00:06]} Nxd4 {[%emt 0:00:06]} 10. Nxd4 {[%emt 0:00:06]} a6 {[%emt 0:00:07]} 11. Re1 {[%emt 0:00:05]} Qc7 {[%emt 0:00:04]} 12. Bb3 {[%emt 0:00:05]} Bd6 {[%emt 0:00:07]} 13. Nf5 {[%emt 0:00:05]} Bxh2+ {[%emt 0:00:07]} 14. Kh1 {[%emt 0:00:04]} O-O {[%emt 0:00:04]} 15. Nxg7 {[%emt 0:00:05]} Rd8 {[%emt 0:00:08]} 16. Qf3 {[%emt 0:00:04]} Kxg7 {[%emt 0:00:05]} 17. Bh6+ {[%emt 0:00:05]} Kg6 {[%emt 0:00:04]} 18. c3 {[%emt 0:00:06]} Nh5 {[%emt 0:00:10]} 19. Re4 {[%emt 0:00:06]} Kxh6 {[%emt 0:00:16]} 20. Rh4 {[%emt 0:00:06]} Qe5 {[%emt 0:00:06]} 21. Qxf7 {[%emt 0:00:07]} Qf5 {[%emt 0:00:06]} 22. Rxh5+ {[%emt 0:00:05]} Qxh5 {[%emt 0:00:04]} 23. Qf6+ {[%emt 0:00:06]} Qg6 {[%emt 0:00:04]} 24. Qh4+ {[%emt 0:00:06]} Qh5 {[%emt 0:00:04]} 25. Qf6+ {[%emt 0:00:04]} 1/2-1/2

[Event "22nd Ruzomberok Open 2019"]
[Site "Ruzomberok"]
[Date "2019.07.03"]
[Round "5.3"]
[White "Vacek, Ondrej"]
[Black "Movsesian, Julia"]
[Result "0-1"]
[ECO "D02"]
[WhiteElo "2125"]
[BlackElo "2291"]
[Annotator "NA"]
[PlyCount "70"]
[EventDate "2019.06.29"]
[EventType "swiss"]
[EventCountry "SVK"]
[SourceTitle "playchess.com"]
[Source "ChessBase"]
[SourceQuality "1"]
[TimeControl "40/5400+30:1800+30"]

1. Nf3 {[%emt 0:00:00]} d5 {[%emt 0:00:00]} 2. d4 {[%emt 0:00:00]} Nf6 {[%emt 0:00:00]} 3. c4 {[%emt 0:00:00]} e6 {[%emt 0:00:00]} 4. g3 {[%emt 0:00:00]} a6 {[%emt 0:00:01]} 5. Qc2 {[%emt 0:02:00]} dxc4 {[%emt 0:00:48]} 6. Qxc4 {[%emt 0:00:16]} b5 {[%emt 0:00:19]} 7. Qc2 {[%emt 0:00:41]} Bb7 {[%emt 0:00:06]} 8. Bg2 {[%emt 0:00:36]} Nbd7 {[%emt 0:00:41]} 9. Bg5 {[%emt 0:08:49]} c5 {[%emt 0:01:28]} 10. Bxf6 {[%emt 0:07:34]} Qxf6 {[%emt 0:02:05]} 11. Nbd2 {[%emt 0:05:30]} cxd4 {[%emt 0:08:09]} 12. Qc7 {[%emt 0:09:11]} Bd5 {[%emt 0:00:34]} 13. O-O {[%emt 0:01:19]} Bc5 {[%emt 0:06:02]} 14. Rac1 {[%emt 0:06:45]} Qe7 {[%emt 0:05:51]} 15. Ne5 {[%emt 0:11:06]} Bb6 {[%emt 0:23:58]} 16. Qxd7+ {[%emt 0:02:40]} Qxd7 {[%emt 0:00:06]} 17. Nxd7 {[%emt 0:00:07]} Kxd7 {[%emt 0:00:03]} 18. Bxd5 {[%emt 0:00:46]} exd5 {[%emt 0:00:38]} 19. Rc2 {[%emt 0:05:17]} Rhe8 {[%emt 0:05:35]} 20. Nb3 {[%emt 0:03:07]} Rac8 {[%emt 0:01:32]} 21. Rfc1 {[%emt 0:02:09]} Rc4 {[%emt 0:00:27]} 22. Rd2 {[%emt 0:02:36]} d3 {[%emt 0:16:45]} 23. Rxd3 {[%emt 0:22:03]} Rxe2 {[%emt 0:00:15]} 24. Rxc4 {[%emt 0:01:24]} Re1+ {[%emt 0:03:45]} 25. Kg2 bxc4 26. Rxd5+ {[%emt 0:03:53]} Kc6 {[%emt 0:00:57]} 27. Rf5 {[%emt 0:00:17]} cxb3 {[%emt 0:00:08]} 28. axb3 {[%emt 0:00:23]} f6 {[%emt 0:00:01]} 29. h4 {[%emt 0:00:28]} Bd4 {[%emt 0:01:04]} 30. g4 {[%emt 0:00:38]} Bxb2 {[%emt 0:00:26]} 31. f4 {[%emt 0:00:33]} Bc3 {[%emt 0:00:33]} 32. b4 {[%emt 0:01:46]} Bxb4 {[%emt 0:00:16]} 33. g5 {[%emt 0:00:13]} Bc3 {[%emt 0:00:07]} 34. gxf6 {[%emt 0:00:19]} Bxf6 {[%emt 0:00:14]} 35. h5 {[%emt 0:00:10]} h6 {[%emt 0:00:05]} 0-1

[Event "22nd Ruzomberok Open 2019"]
[Site "Ruzomberok"]
[Date "2019.07.03"]
[Round "5.4"]
[White "Farkas, Gabor"]
[Black "Bednar, Jan"]
[Result "0-1"]
[ECO "C02"]
[WhiteElo "2353"]
[BlackElo "2084"]
[Annotator "NA"]
[PlyCount "100"]
[EventDate "2019.06.29"]
[EventType "swiss"]
[EventCountry "SVK"]
[SourceTitle "playchess.com"]
[Source "ChessBase"]
[SourceQuality "1"]
[TimeControl "40/5400+30:1800+30"]

1. e4 {[%emt 0:00:00]} e6 {[%emt 0:00:00]} 2. d4 {[%emt 0:00:00]} d5 {[%emt 0:00:00]} 3. e5 {[%emt 0:01:26]} c5 {[%emt 0:00:08]} 4. c3 {[%emt 0:00:07]} Nc6 {[%emt 0:00:05]} 5. Nf3 {[%emt 0:00:06]} Qb6 {[%emt 0:00:21]} 6. a3 {[%emt 0:01:44]} a5 {[%emt 0:01:21]} 7. Bd3 {[%emt 0:00:19]} Bd7 {[%emt 0:01:14]} 8. O-O {[%emt 0:02:51]} cxd4 {[%emt 0:00:45]} 9. cxd4 {[%emt 0:00:07]} Nxd4 {[%emt 0:03:25]} 10. Nxd4 {[%emt 0:00:06]} Qxd4 {[%emt 0:00:10]} 11. Nc3 {[%emt 0:00:04]} Qb6 {[%emt 0:04:07]} 12. Kh1 {[%emt 0:05:56]} h5 {[%emt 0:05:54]} 13. f4 {[%emt 0:02:44]} g6 {[%emt 0:00:34]} 14. Qc2 {[%emt 0:23:04]} Ne7 {[%emt 0:02:24]} 15. f5 {[%emt 0:10:09]} Nxf5 {[%emt 0:20:20]} 16. Bg5 {[%emt 0:04:03]} Rc8 {[%emt 0:12:09]} 17. Bf6 {[%emt 0:04:31]} Rh7 {[%emt 0:08:09]} 18. Qe2 {[%emt 0:05:11]} Be7 {[%emt 0:04:13]} 19. Bxf5 {[%emt 0:13:20]} gxf5 {[%emt 0:00:51]} 20. Qd2 {[%emt 0:01:40]} Bxf6 {[%emt 0:05:05]} 21. exf6 {[%emt 0:00:07]} Rc4 {[%emt 0:00:45]} 22. h3 {[%emt 0:08:09]} Rg4 {[%emt 0:01:47]} 23. Rae1 {[%emt 0:06:07]} Kf8 {[%emt 0:01:26]} 24. Qe2 {[%emt 0:00:57]} Qd6 {[%emt 0:03:21]} 25. Nxd5 {[%emt 0:03:31]} Qxd5 {[%emt 0:06:45]} 26. hxg4 {[%emt 0:00:07]} hxg4+ {[%emt 0:00:07]} 27. Kg1 {[%emt 0:00:04]} Qd4+ {[%emt 0:00:28]} 28. Qe3 {[%emt 0:01:12]} Qxf6 {[%emt 0:00:26]} 29. Qc5+ {[%emt 0:00:06]} Kg7 {[%emt 0:00:26]} 30. Qe5 {[%emt 0:03:33]} Bc6 {[%emt 0:00:22]} 31. Qxf6+ {[%emt 0:01:02]} Kxf6 {[%emt 0:00:06]} 32. Rc1 {[%emt 0:00:21]} Rh8 {[%emt 0:01:37]} 33. Rc5 {[%emt 0:00:07]} a4 {[%emt 0:00:37]} 34. Rd1 {[%emt 0:01:22]} Ra8 {[%emt 0:00:14]} 35. Kf2 {[%emt 0:00:35]} Ra6 {[%emt 0:00:11]} 36. Rd2 {[%emt 0:00:34]} Rb6 {[%emt 0:00:16]} 37. g3 {[%emt 0:02:04]} Rb3 {[%emt 0:00:20]} 38. Rc3 {[%emt 0:00:06]} Rxc3 {[%emt 0:01:52]} 39. bxc3 {[%emt 0:00:05]} e5 {[%emt 0:00:23]} 40. Ke3 {[%emt 0:00:07]} Kg5 {[%emt 0:00:18]} 41. Rf2 {[%emt 0:02:31]} Bf3 {[%emt 0:02:34]} 42. Rb2 {[%emt 0:00:13]} f4+ {[%emt 0:00:23]} 43. Kf2 {[%emt 0:00:06]} Bc6 {[%emt 0:00:50]} 44. Rb4 {[%emt 0:00:44]} f5 {[%emt 0:00:19]} 45. gxf4+ {[%emt 0:01:04]} exf4 {[%emt 0:00:06]} 46. c4 {[%emt 0:00:05]} g3+ {[%emt 0:00:14]} 47. Kg1 {[%emt 0:00:06]} f3 {[%emt 0:00:23]} 48. c5 {[%emt 0:00:05]} f4 {[%emt 0:00:18]} 49. Rb2 {[%emt 0:00:30]} Kg4 {[%emt 0:00:38]} 50. Rb4 {[%emt 0:00:44]} Kh3 {[%emt 0:00:57]} 0-1

[Event "22nd Ruzomberok Open 2019"]
[Site "Ruzomberok"]
[Date "2019.07.03"]
[Round "5.5"]
[White "Holly, Andrej"]
[Black "Vojtek, Vladimir"]
[Result "0-1"]
[ECO "B92"]
[WhiteElo "2046"]
[BlackElo "2313"]
[Annotator "NA"]
[PlyCount "102"]
[EventDate "2019.06.29"]
[EventType "swiss"]
[EventCountry "SVK"]
[SourceTitle "playchess.com"]
[Source "ChessBase"]
[SourceQuality "1"]
[TimeControl "40/5400+30:1800+30"]

1. e4 {[%emt 0:00:00]} c5 {[%emt 0:01:23]} 2. Nf3 {[%emt 0:00:00]} d6 {[%emt 0:00:03]} 3. d4 {[%emt 0:00:00]} cxd4 {[%emt 0:00:03]} 4. Nxd4 {[%emt 0:00:01]} Nf6 {[%emt 0:00:03]} 5. Nc3 {[%emt 0:00:28]} a6 {[%emt 0:00:03]} 6. Be2 {[%emt 0:01:12]} e5 {[%emt 0:00:16]} 7. Nf3 {[%emt 0:01:36]} Be7 {[%emt 0:00:55]} 8. Bg5 {[%emt 0:01:57]} Nbd7 {[%emt 0:00:36]} 9. a4 {[%emt 0:01:30]} O-O {[%emt 0:01:28]} 10. O-O {[%emt 0:08:14]} h6 {[%emt 0:01:56]} 11. Bh4 {[%emt 0:03:03]} b6 {[%emt 0:04:50]} 12. Nd2 {[%emt 0:08:18]} Bb7 {[%emt 0:03:06]} 13. Bf3 {[%emt 0:04:47]} Rc8 {[%emt 0:02:56]} 14. Re1 {[%emt 0:02:16]} Re8 {[%emt 0:09:16]} 15. Nf1 {[%emt 0:04:40]} b5 {[%emt 0:06:16]} 16. axb5 {[%emt 0:14:35]} axb5 {[%emt 0:00:05]} 17. Nxb5 {[%emt 0:00:16]} Qb6 {[%emt 0:00:43]} 18. Nc3 {[%emt 0:06:20]} Qxb2 {[%emt 0:12:02]} 19. Bxf6 {[%emt 0:00:36]} Nxf6 {[%emt 0:01:42]} 20. Rb1 {[%emt 0:02:46]} Qxc3 {[%emt 0:00:09]} 21. Rxb7 {[%emt 0:00:03]} Qxc2 {[%emt 0:04:10]} 22. Qxc2 {[%emt 0:00:41]} Rxc2 {[%emt 0:00:01]} 23. Ne3 {[%emt 0:02:48]} Rc6 {[%emt 0:05:29]} 24. Ra1 {[%emt 0:05:39]} Bd8 {[%emt 0:13:15]} 25. Rd1 {[%emt 0:10:44]} Kf8 {[%emt 0:02:35]} 26. Be2 {[%emt 0:04:57]} Rb6 {[%emt 0:06:25]} 27. Rxb6 {[%emt 0:02:53]} Bxb6 {[%emt 0:00:02]} 28. Nd5 {[%emt 0:00:12]} Nxd5 {[%emt 0:02:09]} 29. Rxd5 {[%emt 0:00:02]} Bc5 {[%emt 0:00:39]} 30. g4 {[%emt 0:02:40]} Rb8 {[%emt 0:01:03]} 31. Rd2 {[%emt 0:01:25]} Rb4 {[%emt 0:01:32]} 32. Bf3 {[%emt 0:00:24]} Ke7 {[%emt 0:01:22]} 33. h4 {[%emt 0:04:09]} g6 {[%emt 0:01:26]} 34. h5 {[%emt 0:00:32]} gxh5 {[%emt 0:02:12]} 35. gxh5 {[%emt 0:00:02]} Kf6 {[%emt 0:00:27]} 36. Kg2 {[%emt 0:05:57]} Kg5 {[%emt 0:00:11]} 37. Rc2 {[%emt 0:00:58]} Kf4 {[%emt 0:00:24]} 38. Be2 {[%emt 0:01:26]} Rxe4 {[%emt 0:04:11]} 39. Rc4 {[%emt 0:00:08]} Bd4 {[%emt 0:02:16]} 40. Bd3 {[%emt 0:01:10]} Re1 {[%emt 0:00:13]} 41. Rc7 {[%emt 0:01:32]} f5 {[%emt 0:00:28]} 42. Rh7 {[%emt 0:01:00]} e4 {[%emt 0:00:31]} 43. Bc4 {[%emt 0:01:52]} Rc1 {[%emt 0:00:13]} 44. Be2 {[%emt 0:02:01]} Rc2 {[%emt 0:00:46]} 45. Kf1 {[%emt 0:00:01]} Ke5 {[%emt 0:02:45]} 46. Rxh6 {[%emt 0:00:44]} f4 {[%emt 0:00:08]} 47. f3 {[%emt 0:02:08]} exf3 {[%emt 0:00:54]} 48. Bxf3 {[%emt 0:00:21]} Rf2+ {[%emt 0:00:06]} 49. Ke1 {[%emt 0:00:03]} Rxf3 {[%emt 0:00:07]} 50. Rh8 {[%emt 0:00:54]} Ke4 {[%emt 0:00:15]} 51. Re8+ {[%emt 0:00:07]} Be5 {[%emt 0:00:11]} 0-1

[Event "22nd Ruzomberok Open 2019"]
[Site "Ruzomberok"]
[Date "2019.07.03"]
[Round "5.6"]
[White "Cech, Dominik"]
[Black "Pniaczek, Marek"]
[Result "1-0"]
[ECO "B01"]
[WhiteElo "2092"]
[BlackElo "2276"]
[Annotator "NA"]
[PlyCount "108"]
[EventDate "2019.06.29"]
[EventType "swiss"]
[EventCountry "SVK"]
[SourceTitle "playchess.com"]
[Source "ChessBase"]
[SourceQuality "1"]
[TimeControl "40/5400+30:1800+30"]

1. e4 {[%emt 0:03:19]} d5 {[%emt 0:00:00]} 2. exd5 {[%emt 0:00:17]} Qxd5 {[%emt 0:00:00]} 3. Nc3 {[%emt 0:00:15]} Qa5 {[%emt 0:00:00]} 4. d4 {[%emt 0:01:12]} Nf6 {[%emt 0:00:00]} 5. Nf3 {[%emt 0:01:07]} c6 {[%emt 0:00:28]} 6. Ne5 {[%emt 0:09:46]} Bf5 {[%emt 0:03:22]} 7. Bc4 {[%emt 0:01:35]} e6 {[%emt 0:00:44]} 8. Qe2 {[%emt 0:09:13]} Bb4 {[%emt 0:05:39]} 9. Bd2 {[%emt 0:04:25]} Nbd7 {[%emt 0:01:26]} 10. Nxd7 {[%emt 0:09:27]} Nxd7 {[%emt 0:01:18]} 11. O-O {[%emt 0:02:11]} O-O-O {[%emt 0:13:29]} 12. a3 {[%emt 0:02:42]} Bxc3 {[%emt 0:00:19]} 13. Bxc3 {[%emt 0:00:14]} Qc7 {[%emt 0:00:28]} 14. Rfd1 {[%emt 0:18:48]} Nf6 {[%emt 0:03:16]} 15. h3 {[%emt 0:09:22]} h5 {[%emt 0:06:45]} 16. Bd3 {[%emt 0:10:02]} Rd5 {[%emt 0:02:10]} 17. Bb4 {[%emt 0:03:25]} Rhd8 {[%emt 0:15:31]} 18. Bxf5 {[%emt 0:02:42]} Rxf5 {[%emt 0:00:07]} 19. c4 {[%emt 0:00:42]} g5 {[%emt 0:06:10]} 20. Qe3 {[%emt 0:01:25]} h4 {[%emt 0:02:03]} 21. d5 {[%emt 0:01:44]} exd5 {[%emt 0:01:28]} 22. Qxa7 {[%emt 0:00:29]} Re8 {[%emt 0:03:56]} 23. Rac1 {[%emt 0:03:00]} Re2 {[%emt 0:03:10]} 24. Ba5 {[%emt 0:01:33]} Qb8 {[%emt 0:01:05]} 25. Qb6 {[%emt 0:01:07]} Kd7 {[%emt 0:02:27]} 26. cxd5 {[%emt 0:01:21]} Rxd5 {[%emt 0:01:57]} 27. Re1 {[%emt 0:01:09]} Rxe1+ {[%emt 0:01:49]} 28. Rxe1 {[%emt 0:00:07]} Rb5 {[%emt 0:02:03]} 29. Qd4+ {[%emt 0:00:33]} Qd6 {[%emt 0:00:35]} 30. Qa4 {[%emt 0:01:11]} Re5 {[%emt 0:02:10]} 31. Rxe5 {[%emt 0:00:31]} Qxe5 {[%emt 0:00:04]} 32. Bc3 {[%emt 0:00:12]} Qd6 {[%emt 0:05:39]} 33. Qa7 {[%emt 0:00:26]} Qd1+ {[%emt 0:02:00]} 34. Kh2 {[%emt 0:00:05]} Qd6+ {[%emt 0:01:10]} 35. Kg1 {[%emt 0:00:11]} Qd1+ {[%emt 0:00:05]} 36. Kh2 {[%emt 0:01:05]} Qd6+ {[%emt 0:00:04]} 37. g3 {[%emt 0:00:09]} hxg3+ {[%emt 0:03:36]} 38. fxg3 {[%emt 0:00:05]} Nd5 {[%emt 0:04:07]} 39. Qxb7+ {[%emt 0:00:10]} Ke8 {[%emt 0:02:22]} 40. Qc8+ {[%emt 0:00:41]} Ke7 {[%emt 0:00:04]} 41. Bg7 {[%emt 0:07:27]} Qe6 {[%emt 0:02:10]} 42. Qxe6+ {[%emt 0:01:29]} Kxe6 {[%emt 0:00:04]} 43. Kg2 {[%emt 0:03:42]} f6 {[%emt 0:00:38]} 44. Bf8 {[%emt 0:00:45]} Ne3+ {[%emt 0:00:26]} 45. Kf3 {[%emt 0:00:22]} Nc4 {[%emt 0:00:44]} 46. a4 {[%emt 0:02:41]} Nxb2 {[%emt 0:00:48]} 47. a5 {[%emt 0:00:16]} Nc4 {[%emt 0:01:16]} 48. a6 {[%emt 0:00:22]} Nb6 {[%emt 0:00:27]} 49. a7 {[%emt 0:01:26]} Kf5 {[%emt 0:00:37]} 50. Bc5 {[%emt 0:00:52]} Na8 {[%emt 0:00:04]} 51. h4 {[%emt 0:03:03]} gxh4 {[%emt 0:00:25]} 52. gxh4 {[%emt 0:00:06]} Nc7 {[%emt 0:00:21]} 53. Bb6 {[%emt 0:00:29]} Na8 {[%emt 0:00:04]} 54. Bd8 {[%emt 0:00:11]} c5 {[%emt 0:00:26] Ke4+} 1-0

[Event "22nd Ruzomberok Open 2019"]
[Site "Ruzomberok"]
[Date "2019.07.03"]
[Round "5.7"]
[White "Viczencz, Peter"]
[Black "Sarkozy, Ladislav"]
[Result "1/2-1/2"]
[ECO "C50"]
[WhiteElo "2014"]
[BlackElo "2227"]
[Annotator "NA"]
[PlyCount "93"]
[EventDate "2019.06.29"]
[EventType "swiss"]
[EventCountry "SVK"]
[SourceTitle "playchess.com"]
[Source "ChessBase"]
[SourceQuality "1"]
[TimeControl "40/5400+30:1800+30"]

1. e4 {[%emt 0:00:00]} e5 {[%emt 0:00:00]} 2. Nf3 {[%emt 0:00:00]} Nc6 {[%emt 0:00:00]} 3. Bc4 {[%emt 0:00:00]} Bc5 {[%emt 0:00:09]} 4. O-O {[%emt 0:00:00]} Nf6 {[%emt 0:01:32]} 5. d3 {[%emt 0:00:16]} d6 {[%emt 0:01:22]} 6. h3 {[%emt 0:00:17]} h6 {[%emt 0:01:15]} 7. c3 {[%emt 0:00:15]} a6 {[%emt 0:02:10]} 8. Re1 {[%emt 0:00:20]} O-O {[%emt 0:01:56]} 9. b4 {[%emt 0:01:59]} Ba7 {[%emt 0:00:38]} 10. a4 {[%emt 0:00:11]} Be6 {[%emt 0:02:15]} 11. Nbd2 {[%emt 0:00:59]} Bxc4 {[%emt 0:02:31]} 12. Nxc4 {[%emt 0:01:40]} Ne7 {[%emt 0:02:17]} 13. Be3 {[%emt 0:05:53]} Bxe3 {[%emt 0:01:16]} 14. fxe3 {[%emt 0:01:16]} Ng6 {[%emt 0:01:24]} 15. Qc2 {[%emt 0:00:53]} Re8 {[%emt 0:02:05]} 16. Rad1 {[%emt 0:05:05]} Qe7 {[%emt 0:03:49]} 17. Ncd2 {[%emt 0:02:21]} Rad8 {[%emt 0:16:52]} 18. Nf1 {[%emt 0:02:30]} d5 {[%emt 0:01:04]} 19. exd5 {[%emt 0:00:38]} Nxd5 {[%emt 0:00:11]} 20. Ng3 {[%emt 0:00:37]} Nh4 {[%emt 0:01:38]} 21. Nxh4 {[%emt 0:04:04]} Qxh4 {[%emt 0:00:04]} 22. Kh2 {[%emt 0:00:30]} Nf6 {[%emt 0:03:34]} 23. Nf5 {[%emt 0:04:34]} Qg5 {[%emt 0:00:48]} 24. e4 {[%emt 0:02:24]} g6 {[%emt 0:01:42]} 25. Ng3 {[%emt 0:02:47]} Ng4+ {[%emt 0:03:47]} 26. hxg4 {[%emt 0:01:24]} Qh4+ {[%emt 0:00:06]} 27. Kg1 {[%emt 0:00:04]} Qxg3 {[%emt 0:00:07]} 28. Qe2 {[%emt 0:00:33]} Re6 {[%emt 0:01:00]} 29. Qf3 {[%emt 0:01:14]} Qxf3 {[%emt 0:01:24]} 30. gxf3 {[%emt 0:00:06]} Rc6 {[%emt 0:00:46]} 31. d4 {[%emt 0:10:21]} Rxc3 {[%emt 0:06:14]} 32. dxe5 {[%emt 0:01:10]} Rxd1 {[%emt 0:01:55]} 33. Rxd1 {[%emt 0:00:02]} Rxf3 {[%emt 0:00:06]} 34. Rd8+ {[%emt 0:00:06]} Kg7 {[%emt 0:00:06]} 35. Rd7 {[%emt 0:00:05]} Rf4 {[%emt 0:01:18]} 36. e6 {[%emt 0:01:24]} Kf8 {[%emt 0:04:14]} 37. Rxc7 {[%emt 0:00:32]} fxe6 {[%emt 0:00:18]} 38. Rxb7 {[%emt 0:00:29]} Rxg4+ {[%emt 0:01:03]} 39. Kf2 {[%emt 0:00:06]} Rxe4 {[%emt 0:00:09]} 40. Kf3 {[%emt 0:00:48]} Rc4 {[%emt 0:07:50]} 41. a5 {[%emt 0:30:53]} Ke8 {[%emt 0:32:21]} 42. b5 {[%emt 0:00:47]} Kd8 {[%emt 0:00:29]} 43. b6 {[%emt 0:02:51]} Kc8 {[%emt 0:03:28]} 44. Ra7 {[%emt 0:00:09]} Rc5 {[%emt 0:00:55]} 45. Rxa6 {[%emt 0:00:08]} Rb5 {[%emt 0:00:17]} 46. Ra7 {[%emt 0:00:40]} h5 {[%emt 0:00:19]} 47. Re7 {[%emt 0:03:30]} 1/2-1/2

[Event "22nd Ruzomberok Open 2019"]
[Site "Ruzomberok"]
[Date "2019.07.03"]
[Round "5.8"]
[White "Borsos, Bogdan"]
[Black "Bartek, Ladislav"]
[Result "1-0"]
[ECO "A05"]
[WhiteElo "2216"]
[BlackElo "2042"]
[Annotator "NA"]
[PlyCount "59"]
[EventDate "2019.06.29"]
[EventType "swiss"]
[EventCountry "SVK"]
[SourceTitle "playchess.com"]
[Source "ChessBase"]
[SourceQuality "1"]
[TimeControl "40/5400+30:1800+30"]

1. Nf3 {[%emt 0:02:56]} Nf6 {[%emt 0:00:00]} 2. c4 {[%emt 0:00:14]} g6 {[%emt 0:00:00]} 3. d4 {[%emt 0:00:13]} Bg7 {[%emt 0:00:00]} 4. g3 {[%emt 0:00:04]} O-O {[%emt 0:00:09]} 5. Bg2 {[%emt 0:00:04]} d6 {[%emt 0:00:08]} 6. O-O {[%emt 0:00:15]} a6 {[%emt 0:00:08]} 7. h3 {[%emt 0:06:16]} Nc6 {[%emt 0:01:55]} 8. Nc3 {[%emt 0:03:21]} Rb8 {[%emt 0:00:10]} 9. Nd5 {[%emt 0:00:17]} e6 {[%emt 0:01:15]} 10. Nxf6+ {[%emt 0:00:14]} Bxf6 {[%emt 0:00:46]} 11. Bh6 {[%emt 0:00:08]} Bg7 {[%emt 0:02:02]} 12. Bxg7 {[%emt 0:05:54]} Kxg7 {[%emt 0:00:08]} 13. d5 {[%emt 0:01:36]} Ne7 {[%emt 0:04:15]} 14. Qd2 {[%emt 0:05:10]} e5 {[%emt 0:05:25]} 15. c5 {[%emt 0:01:15]} f5 {[%emt 0:03:47]} 16. Rfd1 {[%emt 0:04:59]} e4 {[%emt 0:04:37]} 17. cxd6 {[%emt 0:03:05]} Qxd6 {[%emt 0:03:50]} 18. Qd4+ {[%emt 0:01:10]} Qf6 {[%emt 0:01:38]} 19. Ne5 {[%emt 0:04:05]} Rd8 {[%emt 0:06:52]} 20. Qa7 {[%emt 0:01:12]} Qxe5 {[%emt 0:00:11]} 21. Qxb8 {[%emt 0:00:15]} Nxd5 {[%emt 0:04:29]} 22. Rac1 {[%emt 0:04:23]} Kf6 {[%emt 0:09:33]} 23. Rxc7 {[%emt 0:04:28]} Nxc7 {[%emt 0:02:23]} 24. Rxd8 {[%emt 0:00:20]} Be6 {[%emt 0:00:48]} 25. Qxb7 {[%emt 0:07:10]} Bd5 {[%emt 0:03:43]} 26. Qb6+ {[%emt 0:05:18]} Ne6 {[%emt 0:00:12]} 27. e3 {[%emt 0:04:36]} Kg5 {[%emt 0:01:08]} 28. Rd7 {[%emt 0:06:00]} Bc4 {[%emt 0:01:15]} 29. Rxh7 {[%emt 0:11:21]} Qd5 {[%emt 0:00:41]} 30. Qa7 {[%emt 0:00:55]} 1-0